Cogmind - Beta 15 @@@ ROGUE MODE // 2025.06.07 @ 10:28:18 Player: Nisakard Result: Self-destructed Performance ------------- Evolutions (1) 500 Regions Visited (3) 600 Robots Destroyed (39) 195 Value Destroyed (851) 851 Prototype IDs (4) 80 Alien Tech Used (0) 0 Bonus (0) 0 TOTAL SCORE: 2226 Bonus ------- None Cogmind --------- Core Integrity 179/400 Matter 300/300 Energy 250/250 System Corruption 1% Temperature Cool (0) Movement Core (600) Ox11 Location -9/Materials Parts ------- > --- POWER (1) -------- Ion Engine > --- PROPULSION (3) --- (None) > --- UTILITY (3) ------ Large Storage Unit Visual Processing Unit Light Armor Plating > --- WEAPON (2) ------- Maul Maul > --- INVENTORY (15) --- Light Ion Engine Light Ion Engine Light Treads Aluminum Leg Signal Interpreter Seismic Detector Power Shielding Propulsion Shielding Authchip [Weapon] Particle Gun Spread Laser Spread Laser Grenade Launcher Peak State ------------ > --- POWER ------------ Ion Engine > --- PROPULSION ------- Aluminum Leg Aluminum Leg Aluminum Leg > --- UTILITY ---------- Large Storage Unit Large Storage Unit Visual Processing Unit > --- WEAPON ----------- Spread Laser Spread Laser > --- INVENTORY -------- Light Ion Engine Light Ion Engine Light Treads Aluminum Leg Signal Interpreter Seismic Detector Power Shielding Propulsion Shielding Light Armor Plating Authchip [Weapon] Particle Gun Grenade Launcher Maul Maul [Rating: 14] Favorites ----------- Power Ion Engine Engine Ion Engine Propulsion Aluminum Leg Leg Aluminum Leg Utility Large Storage Unit Device Tractor Beam Storage Large Storage Unit Processor Visual Processing Unit Protection Light Armor Plating Weapon Spread Laser Energy Gun Spread Laser Ballistic Gun Light Assault Rifle Impact Weapon Maul Build | -11 -10 -10 -9 ------- Run | Yrd Mat Min Mat Slots Evolved 2 | . . . 2 Power . | . . . . Propulsion 1 | . . . 1 Utility 1 | . . . 1 Weapon . | . . . . Parts Attached 29 | 9 12 2 6 Power 3 | 2 . 1 . Engine 3 | 2 . 1 . Core . | . . . . Reactor . | . . . . Propulsion 6 | 2 2 1 1 Treads . | . . . . Leg 6 | 2 2 1 1 Wheel . | . . . . Hover . | . . . . Flight . | . . . . Utility 8 | 3 3 . 2 Device 1 | 1 . . . Storage 5 | 2 2 . 1 Processor 1 | . 1 . . Hackware . | . . . . Protection 1 | . . . 1 Artifact . | . . . . Weapon 12 | 2 7 . 3 Energy Gun 8 | . 7 . 1 Energy Cannon . | . . . . Ballistic Gun 2 | 2 . . . Ballistic Cannon . | . . . . Launcher . | . . . . Special Weapon . | . . . . Impact Weapon 2 | . . . 2 Slashing Weapon . | . . . . Piercing Weapon . | . . . . Special Melee Weapon . | . . . . Unidentified Prototypes . | . . . . Parts Lost 5 | . 1 . 4 Power 1 | . 1 . . Propulsion 4 | . . . 4 Utility . | . . . . Weapon . | . . . . Highest Loss Streak 3 | . 1 . 3 To Critical Strikes . | . . . . Average Backups 13 | 2 12 15 13 Power 1 | . 1 2 2 Propulsion 3 | . 3 3 2 Utility 4 | . 3 6 5 Weapon 4 | . 4 4 3 Tool/Special . | . . . . Unused Backups 16 | . 4 2 10 Power 1 | . . . 1 Propulsion 3 | . 1 . 2 Utility 8 | . 1 2 5 Weapon 4 | . 2 . 2 Tool/Special . | . . . . Average Slot Usage (%) 97 | . 98 100 85 Engine 12 | . 12 14 11 Leg 28 | . 28 28 29 Device 2 | . 4 . . Storage 13 | . 14 14 11 Processor 10 | . 9 14 11 Energy Gun 25 | . 26 28 16 Peak Build Rating 14 | 7 11 12 14 Average Rating 10 | 5 9 11 12 On Entrance 7 | . 7 11 12 Naked Turns . | . . . . Heaviest Build 34 | 13 32 31 34 Greatest Support 30 | 20 20 20 30 Greatest Overweight (x) 11 | . 1 1 11 Average Overweight (x) . | . . 1 1 Largest Inventory Capacity 25 | 8 25 15 15 Average Capacity 14 | 6 14 15 15 Most Carried 15 | 5 15 15 14 Average Carried 13 | 2 12 14 13 Final Capacity 15 | 8 15 15 15 Final Carried 15 | 5 15 15 13 Class Distribution -------------------- 100% | Mutant Dominant Class ---------------- Mutant | -10/Materials Mutant | -10/Mines Mutant | -9/Materials Resources | -11 -10 -10 -9 ----------- Run | Yrd Mat Min Mat Matter Collected 688 | 298 249 71 70 Remotely 169 | 101 68 . . Salvage Created 1285 | 109 703 118 355 Parts 62 | 6 38 3 15 Haulers Intercepted 2 | . 2 . . Recyclers Shooed 1 | 1 . . . Parts Field Recycled . | . . . . Retrieved Matter . | . . . . Parts Self-Destructed . | . . . . Prevented . | . . . . Kills | -11 -10 -10 -9 ------- Run | Yrd Mat Min Mat Combat Hostiles Destroyed 20 | . 10 4 6 Melee 3 | . . . 3 Guns 15 | . 10 4 1 Classes Destroyed 10 | 2 5 . 3 Worker 2 | . . . 2 Builder 2 | . 2 . . Tunneler 2 | 1 1 . . Hauler 2 | . 2 . . Recycler 5 | 1 3 . 1 Mechanic 1 | . . . 1 Watcher 5 | . 3 . 2 Swarmer 3 | . 3 . . Grunt 16 | . 7 4 5 Brawler 1 | . . . 1 Best Kill Streak 6 | 2 6 2 5 Combat Bots Only 3 | . 3 2 2 Max Kills in Single Turn 2 | 1 2 1 1 Gunslinging . | . . . . Exploded . | . . . . Melee 1 | . . . 1 Uniques/NPCs Destroyed . | . . . . Combat | -11 -10 -10 -9 -------- Run | Yrd Mat Min Mat Hostile Shots Fired 123 | . 39 12 72 Missed 29 | . 9 3 17 Hits 94 | . 30 9 55 Melee 2 | . . . 2 Projectile 92 | . 30 9 53 Critical Strikes 3 | . 2 . 1 Damage Taken 1173 | . 331 132 710 Core 265 | . 32 12 221 Absorbed by Shields . | . . . . Regen/Repaired (Parts) 36 | . 36 . . Core Remaining (%) 91 | 100 . 82 . Volleys Fired 71 | 8 45 8 10 Largest 2 | 1 2 2 2 Hottest 130 | 20 130 130 130 Shots Fired 136 | 8 90 18 20 Gun 136 | 8 90 18 20 Cannon . | . . . . Launcher . | . . . . Special . | . . . . Kinetic 8 | 8 . . . Thermal 92 | . 54 18 20 Explosive . | . . . . Electromagnetic 36 | . 36 . . Robot Hit Streak 19 | 7 12 19 9 Robot Miss Streak 10 | 1 10 3 8 Penetration Max . | . . . . Secondary Targets 3 | . 3 . . Max Gunslinging Chain 1 | . 1 . . Shots Hit Robots 116 | 7 61 14 34 Core Hits 125 | 4 72 24 25 Critical Kills . | . . . . Critical Parts Destroyed 3 | . . . 3 Critical Strikes 6 | . 1 . 5 Corrupt 1 | . 1 . . Smash 5 | . . . 5 Melee Attacks 19 | . . . 19 Impact 19 | . . . 19 Slashing . | . . . . Piercing . | . . . . Sneak Attacks 3 | . . . 3 Combat Hostiles . | . . . . Follow-up Attacks 1 | . . . 1 Damage Inflicted 2118 | 53 812 254 999 Guns 1352 | 53 812 254 233 Cannons . | . . . . Explosions . | . . . . Melee 761 | . . . 761 Ramming 5 | . . . 5 Kinetic 53 | 53 . . . Thermal 1056 | . 569 254 233 Explosive . | . . . . Electromagnetic 243 | . 243 . . Impact 761 | . . . 761 Slashing . | . . . . Piercing . | . . . . Highest Corruption 3 | . 3 3 1 Average Corruption 2 | . 2 3 1 Corruption Purged . | . . . . Corruption Blocked . | . . . . Effects 47 | . 25 22 . Message Errors 14 | . 7 7 . Matter Fused 15 | . 8 7 . Heat Flow Errors 2 | . 1 1 . Energy Discharges 2 | . 2 . . Parts Fused 1 | . . 1 . Data Loss (minor) 9 | . 7 2 . Data Loss (major) 2 | . . 2 . Misfires 2 | . . 2 . Overload Shots . | . . . . Overflow Damage 258 | . . . 258 Projectiles . | . . . . Explosions . | . . . . Melee 258 | . . . 258 Knockbacks 2 | . . . 2 Impact 2 | . . . 2 Kinetic . | . . . . Secondary . | . . . . Self-Inflicted Damage . | . . . . Shots . | . . . . Rammed . | . . . . Targets Rammed 2 | . . . 2 Kicked 2 | . . . 2 Crushed . | . . . . Highest Temperature 411 | . 411 387 285 Average Temperature 111 | . 105 128 120 Received Heat Transfer 582 | . 156 72 354 Effects 7 | . 3 1 3 Shutdowns 2 | . 1 1 . Interference 5 | . 2 . 3 Siege Activations . | . . . . Martial Activations . | . . . . Shielding Activations . | . . . . Robots Disrupted . | . . . . Combat Hostiles . | . . . . Robots Corrupted 3 | . . . 3 Combat Hostiles 2 | . . . 2 Parts Fried 3 | . . . 3 Impact Corruptions 9 | . . . 9 Robots Melted . | . . . . Combat Hostiles . | . . . . Parts Melted . | . . . . Heat Transferred 1406 | . 786 325 295 Parts Sabotaged . | . . . . Parts Stolen . | . . . . Parts Stripped . | . . . . Power Chain Reactions . | . . . . Alert | -11 -10 -10 -9 ------- Run | Yrd Mat Min Mat Maximum Alert Level . | . . . . Low Security (%) 100 | 100 100 100 100 Level 1 . | . . . . Level 2 . | . . . . Level 3 . | . . . . Level 4 . | . . . . Level 5 . | . . . . High Security . | . . . . Max Security . | . . . . Peak Influence 84 | 5 84 50 77 Initial 7 | . . 7 . Average 12 | 1 17 4 13 Influence Increases 643 | 10 343 100 190 Destroy 0b10 Robot/C 400 | . 200 80 120 Destroy 0b10 Robot/NC 95 | 10 55 . 30 Destroy Leader 104 | . 60 20 24 Successful Hack 29 | . 13 . 16 Disable Machine 15 | . 15 . . Influence Decreases 576 | 10 322 121 123 Entered New Map 14 | . . 14 . Time Decay 512 | 10 312 107 83 Lost Part 50 | . 10 . 40 Squads Dispatched 2 | . 2 . . Investigation 1 | . 1 . . Extermination . | . . . . Reinforcement 1 | . 1 . . Assault . | . . . . Garrison . | . . . . Intercept . | . . . . Searches Triggered . | . . . . Construction Impeded . | . . . . Haulers Reinforced . | . . . . Active Scanning Responses . | . . . . Cargo Convoy Interrupts . | . . . . Stealth | -11 -10 -10 -9 --------- Run | Yrd Mat Min Mat Distress Signals 1 | . 1 . . Communications Jammed . | . . . . Distress Signals . | . . . . Times Spotted 33 | . 19 4 10 Peak Tracking Total 4 | . 3 2 4 Tactical Retreats . | . . . . Traps | -11 -10 -10 -9 ------- Run | Yrd Mat Min Mat Traps Triggered 4 | . 3 . 1 Indirectly . | . . . . Trap Hack Attempts . | . . . . Triggered . | . . . . Disarmed . | . . . . Reprogrammed . | . . . . Reused . | . . . . Traps Extracted . | . . . . Installed . | . . . . Triggered . | . . . . Machines | -11 -10 -10 -9 ---------- Run | Yrd Mat Min Mat Machines Disabled 1 | . 1 . . Max in Single Turn 1 | . 1 . . Machines Repaired . | . . . . Machines Dismantled . | . . . . Machines Sabotaged . | . . . . Overloaded Fab Kills . | . . . . Hacking | -11 -10 -10 -9 --------- Run | Yrd Mat Min Mat Machines Accessed 12 | . 8 1 3 Terminals 11 | . 7 1 3 Fabricators . | . . . . Repair Stations 1 | . 1 . . Recycling Units . | . . . . Scanalyzers . | . . . . Garrison Access . | . . . . Total Hacks 28 | . 18 2 8 Successful 10 | . 6 . 4 Failed 18 | . 12 2 4 Catastrophic 6 | . 3 2 1 Database Lockouts . | . . . . Manual 12 | . 6 2 4 Terminals 26 | . 16 2 8 Fabricators . | . . . . Repair Stations 2 | . 2 . . Recycling Units . | . . . . Scanalyzers . | . . . . Garrison Access . | . . . . Terminal Hacks 8 | . 4 . 4 Prototype ID Bank 2 | . . . 2 Branch Access Points 2 | . 1 . 1 Terminal Index 2 | . 1 . 1 Locate Traps 2 | . 2 . . Fabricator Hacks . | . . . . Repair Station Hacks 2 | . 2 . . Scan Component 1 | . 1 . . Repair 1 | . 1 . . Recycling Unit Hacks . | . . . . Scanalyzer . | . . . . Garrison Access Hacks . | . . . . Unauthorized Hacks . | . . . . Terminals . | . . . . Fabricators . | . . . . Repair Stations . | . . . . Recycling Units . | . . . . Scanalyzers . | . . . . Garrison Access . | . . . . Data Cores Recovered . | . . . . Used . | . . . . Hacking Detections 12 | . 8 1 3 Full Trace Events 1 | . 1 . . Feedback Events . | . . . . Feedback Blocked . | . . . . Robot Schematics Acquired . | . . . . Robots Built . | . . . . Authchips . | . . . . Time . | . . . . Total Robot Build Rating . | . . . . Part Schematics Acquired . | . . . . Parts Built . | . . . . Authchips . | . . . . Time . | . . . . Total Part Build Rating . | . . . . Parts Repaired 1 | . 1 . . Time 32 | . 32 . . Parts Recycled . | . . . . Recycled Matter . | . . . . Retrieved Matter . | . . . . Retrieved Components . | . . . . Parts Scanalyzed . | . . . . Part Schematics Acquired . | . . . . Parts Damaged . | . . . . Bothacking | -11 -10 -10 -9 ------------ Run | Yrd Mat Min Mat Used RIF Installer . | . . . . Robots Hacked . | . . . . Non-combat . | . . . . Combat . | . . . . Robot Hacks Applied . | . . . . Relay Couplers Released . | . . . . Fabnet Peak Effective % . | . . . . Robots Rewired . | . . . . Allies Hacked . | . . . . Hacks Repelled . | . . . . Allies | -11 -10 -10 -9 -------- Run | Yrd Mat Min Mat Total Allies . | . . . . Largest Group . | . . . . Highest-Rated Group . | . . . . Highest-Rated Ally . | . . . . Total Orders . | . . . . Ally Attacks . | . . . . Total Damage . | . . . . Kills . | . . . . Allies Corrupted . | . . . . Allies Melted . | . . . . Intel | -11 -10 -10 -9 ------- Run | Yrd Mat Min Mat Active Infowar (turns) 2770 | . 1227 1131 412 Optics 2770 | . 1227 1131 412 Robot Analysis Total . | . . . . Derelict Logs Recovered 1 | . . 1 . Drone Launches . | . . . . Drone Recoveries . | . . . . Exploration | -11 -10 -10 -9 ------------- Run | Yrd Mat Min Mat Turns Passed 3571 | 91 1937 1131 412 Spaces Moved 1684 | 52 924 555 153 Core 6 | 5 . . 1 Treads . | . . . . Legs 1678 | 47 924 555 152 Wheels . | . . . . Hover . | . . . . Flight . | . . . . Fastest Speed 50 | 50 120 190 190 Average Speed 183 | 113 182 190 195 Slowest Speed 600 | 120 190 190 600 Overloaded Moves . | . . . . Propulsion Burnouts . | . . . . Robots Hopped . | . . . . Potential Cave-ins . | . . . . Cave-ins Triggered . | . . . . Exploration Rate (%) 54 | 3 98 99 17 Regions Visited 3 Branch Regions 1 Pre-discovered Areas . | . . . . Known Exits Taken 1 | . 1 . . Unknown Exits Taken 2 | 1 . 1 . Scrap Searched 1 | . . 1 . Spaces Dug . | . . . . Terrain Destroyed . | . . . . Melee . | . . . . Projectile . | . . . . AOE . | . . . . Terrain Rammed . | . . . . Walls Destroyed . | . . . . Machines Disabled . | . . . . Actions | -11 -10 -10 -9 --------- Run | Yrd Mat Min Mat Total 1987 | 73 1088 618 208 Wait 134 | . 72 48 14 Move 1681 | 51 923 554 153 Hop . | . . . . Pick Up 25 | 4 17 2 2 Fast Attach 11 | 8 1 . 2 Attach 3 | . 1 . 2 Detach . | . . . . Swap 22 | 1 16 2 3 Drop 21 | 1 13 4 3 Fire 71 | 8 45 8 10 Melee 17 | . . . 17 Ram . | . . . . Kick 2 | . . . 2 Crush . | . . . . Escape Stasis . | . . . . Rewire . | . . . . Trap . | . . . . Miscellaneous . | . . . . Route ------- -11/Scrapyard -10/Materials (discovered 6 exits: *Mat x3 / *Min x2 / [*Sub]) -10/Mines (discovered 2 exits: *Mat x2) -9/Materials (discovered 4 exits: Min x2 / *Sto x2) History --------- Turn | Location | Event 3 | -11/Scrapyard | Discovered new exit (range 15) 92 | -11/Scrapyard | Entered Materials 163 | -10/Materials | Identified exit to Mines 302 | -10/Materials | Build established: Mutant 410 | -10/Materials | Discovered new exit (range 10) 1276 | -10/Materials | Discovered new exit (range 18) 1352 | -10/Materials | Repaired Spread Laser 1687 | -10/Materials | Discovered new exit (range 10) 1746 | -10/Materials | Discovered new exit (range 16) 2029 | -10/Materials | Entered Mines 2420 | -10/Mines | Discovered new exit (range 3) 2863 | -10/Mines | Learned Materials garrison access intel 2869 | -10/Mines | Joined a pair of Derelicts in attacking an 0b10 outpost 2954 | -10/Mines | Discovered new exit (range 11) 3160 | -10/Mines | Entered Materials 3160 | -9/Materials | Evolved 2 slots: Propulsion x1, Utility x1 3291 | -9/Materials | Identified exit to Mines 3291 | -9/Materials | Identified exit to Storage 3560 | -9/Materials | Core integrity fell below 50% 3572 | -9/Materials | Self-destructed Last Messages --------------- 03545_ R-06 Scavenger collects Com. Wheel. 03547_ G-34 Mercenary suffers critical hit (Smash). 03547_ Destroyed Aluminum Leg. 03547_ G-34 Mercenary system corrupted by crushing effect. 03547_ Maul follow-up attack on G-34 Mercenary. 03548_ K-01 Serf collects debris. 03550_ R-06 Scavenger collects Tractor Beam. 03550_ G-34 Mercenary destroyed. 03551_ K-01 Serf collects debris. 03560_ G-34 Mercenary destroyed. 03560_ K-01 Serf collects debris. 03562_ R-06 Scavenger collects Ion Engine. 03563_ Aluminum Leg destroyed. 03564_ K-01 Serf collects debris. 03568_ R-06 Scavenger collects Heat Sink. 03568_ O-16 Technician: "IFF HANDSHAKE FAILED. SECURING TERMINAL." 03570_ K-01 Serf collects debris. Map ----- +----------------------------------------------------+ | ???????????????????????????????? | | ???????????????????????????????? | | ???????????????????????????????? | | ???????????????????????????????? | | ???????????????????????????????? | | ???????????????????????????????? | | ???????????????????????????????? | | ???????????????????????????????? | | ?????? ?????????????????????? | | ?????? ?????????????????????? | | ?????Y ""???????????????????? | | ?????"r ""???????????????????? | | ?????# ???????????????????? | | ?????# ???????????????????? | | ?????# #???????????????????? | | ?????# a#???????????????????? | | ?????# #???????????????????? | | ?????# #???????????????????? | | ?????# #???????????????????? | | ?????# #???????????????????? | | ?????# #???????????????????? | | ?????# #???????????????????? | | ????## ###?????????????????? | | ????# #####+###?????????? | | ????# ??????????? | | ????# @ #?????????????????? | | ????# r### ##?????????????????? | | ????# ###/######+#???????????? | | ????# # [ ???????????? | | ????#% g# """"" ??????????????? | | ????# %+%""""" ??????????????? | | ????#k%%#%""""" ???????????????? | | ????# # ??????????????? | | ????#%%%##########?????????????? | | ????# #??????????????????????? | | ????# #??????????????????????? | | ????#^ %#??????????????????????? | | ???## ##?????????????????????? | | ???# #?????????????????????? | | ???# k #?????????????????????? | | ???# > #?????????????????????? | | ???# #?????????????????????? | | ???# #??????##+##??????????? | | ???### ###??????# #??????????? | | ?????# #????????# #??????????? | | ???### ###??????# #??????????? | | ???# ######## #??????????? | | ???# # #??????????? | | ???# > # ####???????? | | ???# # +???????? | +----------------------------------------------------+ Best States ------------- Heat Dissipation 28 Energy Generation 10 Energy Capacity 250 Matter Stores 300 Matter Capacity 300 Sight Range 18 Terrain Scan Density 10 Armor Coverage 150 Evasion (%) 55 Authchip Count 1 Item Schematics ----------------- None Robot Schematics ------------------ None Fabricated ------------ Nothing Repaired ---------- Spread Laser | 55% | -10/Materials Alien Tech Used ----------------- None Achievements -------------- None Challenges ------------ None Game ------ Seed DeliveryRecoilFirepult Manual? 0 Play Time 00:18:09 Cumulative 19.0 hours Start 2025.06.07 @ 10:12:43 End 2025.06.07 @ 10:28:18 Sessions 1 Manual Loads 0 Difficulty Rogue Special Mode None Game No. 28 Rogue 28 Adventurer 0 Explorer 0 Win Type - Total 0 Types 0/0/0/0/0/0/0/0/0/0 Lore% 31 Gallery% 22 Achievement% 28 Wizard Run 0 Options --------- Layout 1 ASCII 0 Keyboard 0 Movement Numpad Keybinds 0 Fullscreen 2 Font 24/Smallcaps Map View 50x35 Zoom Use 0% Tactical HUD 1 Map Filters NONE Filters NONE Steam 1 RUN: 7237753a-374f-419b-b905-a1ba20bedf3f